Cogmind - Beta 11.1 @@@ ROGUE MODE // 2022.08.24 @ 12:08:50 Player: Awoo-Bot Result: Destroyed by G-47 Trooper with Particle Gun Performance ------------- Evolutions (1) 500 Regions Visited (4) 800 Robots Destroyed (53) 265 Value Destroyed (1656) 1656 Prototype IDs (1) 20 Alien Tech Used (0) 0 Bonus (93) 93 TOTAL SCORE: 3334 Bonus ------- High Alert Combat Kills 33 Follower Combat Kills 60 Cogmind --------- Core Integrity 0/400 Matter 300/300 Energy 93/100 System Corruption 0% Temperature Cool (9) Movement Core (400) Ox7 Location -9/Storage Parts ------- > --- POWER (1) -------- (None) > --- PROPULSION (2) --- (None) > --- UTILITY (3) ------ Heat Sink Large Storage Unit > --- WEAPON (3) ------- Makeshift Hammer > --- INVENTORY (15) --- Light Ion Engine Improved Ion Engine Improved Treads Improved Treads Improved Aluminum Leg Improved Aluminum Leg Carbon-fiber Leg Large Storage Unit Hacking Suite Hacking Suite Heavy Particle Gun Heavy Particle Gun Assault Rifle Heavy Assault Rifle Datajack Peak State ------------ > --- POWER ------------ Improved Ion Engine > --- PROPULSION ------- Improved Treads Improved Treads > --- UTILITY ---------- Heat Sink Large Storage Unit Light Armor Plating > --- WEAPON ----------- Heavy Particle Gun Rocket Launcher Rocket Launcher > --- INVENTORY -------- Improved Ion Engine Improved Treads Improved Treads Improved Aluminum Leg Improved Aluminum Leg Carbon-fiber Leg Large Storage Unit Hacking Suite Hacking Suite Heavy Particle Gun Assault Rifle Heavy Assault Rifle Datajack Makeshift Hammer [Rating: 20] Favorites ----------- Power Ion Engine Engine Ion Engine Propulsion Wheel Treads Light Treads Wheel Wheel Utility Large Storage Unit Device Seismic Detector Storage Large Storage Unit Protection Light Armor Plating Weapon Medium Laser Energy Gun Medium Laser Ballistic Gun Assault Rifle Launcher Rocket Launcher Impact Weapon Makeshift Hammer Build | -11 -10 -10 -9 -9 ------- Run | Scr Mat Min Mat Sto Slots Evolved 2 | . . . 2 . Power . | . . . . . Propulsion . | . . . . . Utility 1 | . . . 1 . Weapon 1 | . . . 1 . Parts Attached 33 | 7 5 2 10 9 Power 5 | 1 1 1 1 1 Engine 5 | 1 1 1 1 1 Core . | . . . . . Reactor . | . . . . . Propulsion 7 | 2 . . 2 3 Treads 5 | . . . 2 3 Leg . | . . . . . Wheel 2 | 2 . . . . Hover . | . . . . . Flight . | . . . . . Utility 10 | 2 3 1 2 2 Device 5 | . 2 1 1 1 Storage 3 | 2 1 . . . Processor . | . . . . . Hackware . | . . . . . Protection 2 | . . . 1 1 Artifact . | . . . . . Weapon 11 | 2 1 . 5 3 Energy Gun 4 | 1 1 . 2 . Energy Cannon . | . . . . . Ballistic Gun 4 | 1 . . 3 . Ballistic Cannon . | . . . . . Launcher 2 | . . . . 2 Special Weapon . | . . . . . Impact Weapon 1 | . . . . 1 Slashing Weapon . | . . . . . Piercing Weapon . | . . . . . Special Melee Weapon . | . . . . . Unidentified Prototypes 1 | . . . 1 . Parts Lost 15 | . 2 1 3 9 Power 4 | . . 1 1 2 Propulsion 4 | . . . 1 3 Utility 3 | . 1 . . 2 Weapon 4 | . 1 . 1 2 Highest Loss Streak 6 | . 1 1 1 6 To Critical Strikes . | . . . . . Average Slot Usage (%) 96 | . 96 99 99 90 Engine 12 | . 14 13 10 8 Treads 5 | . . . 10 18 Wheel 19 | . 28 28 11 1 Device 11 | . 9 14 12 10 Storage 13 | . 15 14 11 11 Protection 3 | . . . 9 9 Energy Gun 12 | . 14 14 11 8 Ballistic Gun 16 | . 14 14 21 16 Naked Turns . | . . . . . Heaviest Build 42 | 19 30 30 38 42 Greatest Support 46 | 20 20 20 20 46 Greatest Overweight (x) 7 | 1 1 1 3 7 Average Overweight (x) 1 | . . 1 2 . Largest Inventory Capacity 15 | 8 15 15 15 15 Average Capacity 14 | 7 12 15 15 15 Most Carried 15 | 6 10 15 15 15 Average Carried 11 | 4 8 12 12 14 Final Capacity 15 | 8 15 15 15 15 Final Carried 15 | 6 10 14 15 15 Class Distribution -------------------- 66% | Mutant 23% | Scavenger-Tank 6% | Tank Dominant Class ---------------- Mutant | -10/Materials Mutant | -10/Mines Scavenger-Tank | -9/Materials Scavenger-Tank | -9/Storage Resources | -11 -10 -10 -9 -9 ----------- Run | Scr Mat Min Mat Sto Matter Collected 867 | 285 117 69 177 219 Remotely 75 | . 75 . . . Salvage Created 2013 | 92 348 364 426 783 Parts 108 | 1 23 17 21 46 Haulers Intercepted . | . . . . . Recyclers Shooed 2 | . . 2 . . Parts Field Recycled . | . . . . . Retrieved Matter . | . . . . . Parts Self-Destructed . | . . . . . Prevented . | . . . . . Kills | -11 -10 -10 -9 -9 ------- Run | Scr Mat Min Mat Sto Combat Hostiles Destroyed 45 | . 9 6 9 21 Melee 4 | . . . . 4 Guns 32 | . 9 6 9 8 Cannons 1 | . . . . 1 AOE 5 | . . . . 5 Classes Destroyed 11 | 1 3 2 2 3 Worker 1 | . . 1 . . Tunneler 1 | . . 1 . . Recycler 2 | 1 . 1 . . Mechanic 1 | . . . . 1 Operator 2 | . 2 . . . Watcher 1 | . . . . 1 Swarmer 8 | . 3 2 . 3 Grunt 24 | . 6 4 4 10 Brawler 2 | . . . . 2 Duelist 2 | . . . 1 1 Sentry 9 | . . . 4 5 Best Kill Streak 8 | 1 4 4 4 8 Combat Bots Only 6 | . 4 2 4 6 Max Kills in Single Turn 5 | 1 1 1 2 5 Gunslinging 1 | . . . 1 . Exploded 4 | . . . . 4 Melee 1 | . . . . 1 Uniques/NPCs Destroyed . | . . . . . Combat | -11 -10 -10 -9 -9 -------- Run | Scr Mat Min Mat Sto Damage Taken 2399 | . 285 148 457 1509 Core 517 | . 73 31 89 324 Absorbed by Shields . | . . . . . Core Remaining (%) 79 | 100 . 58 . . Volleys Fired 99 | 5 24 18 27 25 Largest 3 | 2 2 2 3 3 Hottest 121 | 70 70 70 98 121 Shots Fired 244 | 10 47 36 79 72 Gun 240 | 10 47 36 79 68 Cannon . | . . . . . Launcher 4 | . . . . 4 Special . | . . . . . Kinetic 144 | 5 24 18 52 45 Thermal 96 | 5 23 18 27 23 Explosive 4 | . . . . 4 Electromagnetic . | . . . . . Robot Hit Streak 19 | 8 11 10 8 19 Robot Miss Streak 3 | 1 2 2 2 3 Penetration Max . | . . . . . Secondary Targets 3 | . 1 1 1 . Max Gunslinging Chain 1 | . 1 1 1 . Shots Hit Robots 177 | 8 34 24 48 63 Core Hits 85 | 2 21 14 16 32 Critical Kills 2 | . . . . 2 Critical Parts Destroyed 1 | . . . . 1 Critical Strikes 8 | 1 1 2 1 3 Burn 5 | 1 1 2 1 . Smash 3 | . . . . 3 Melee Attacks 29 | . . . . 29 Impact 29 | . . . . 29 Slashing . | . . . . . Piercing . | . . . . . Sneak Attacks . | . . . . . Combat Hostiles . | . . . . . Follow-up Attacks . | . . . . . Damage Inflicted 3203 | 96 420 335 690 1662 Guns 2202 | 96 420 335 690 661 Cannons . | . . . . . Explosions 347 | . . . . 347 Melee 654 | . . . . 654 Ramming . | . . . . . Kinetic 1106 | 46 192 168 345 355 Thermal 1096 | 50 228 167 345 306 Explosive 347 | . . . . 347 Electromagnetic . | . . . . . Impact 654 | . . . . 654 Slashing . | . . . . . Piercing . | . . . . . Highest Corruption . | . . . . . Average Corruption . | . . . . . Corruption Purged . | . . . . . Corruption Blocked . | . . . . . Overload Shots . | . . . . . Overflow Damage 114 | . . . . 114 Projectiles . | . . . . . Explosions . | . . . . . Melee 114 | . . . . 114 Knockbacks 3 | . . . . 3 Impact 2 | . . . . 2 Kinetic . | . . . . . Secondary 1 | . . . . 1 Self-Inflicted Damage 30 | . . . . 30 Shots 1 | . . . . 1 Rammed . | . . . . . Targets Rammed . | . . . . . Kicked . | . . . . . Crushed . | . . . . . Highest Temperature 281 | 27 66 78 40 281 Average Temperature 38 | 12 24 25 10 76 Received Heat Transfer 798 | . 114 60 129 495 Effects 5 | . . . . 5 Interference 5 | . . . . 5 Siege Activations . | . . . . . Robots Corrupted . | . . . . . Combat Hostiles . | . . . . . Parts Fried 2 | . . . . 2 Impact Corruptions 6 | . . . . 6 Robots Melted . | . . . . . Combat Hostiles . | . . . . . Parts Melted 5 | 1 . 3 1 . Heat Transferred 3034 | 222 740 629 851 592 Parts Sabotaged . | . . . . . Parts Stolen . | . . . . . Parts Stripped . | . . . . . Power Chain Reactions . | . . . . . Missiles Intercepted . | . . . . . Alert | -11 -10 -10 -9 -9 ------- Run | Scr Mat Min Mat Sto Peak Influence 526 | 5 202 126 249 526 Initial 53 | . 3 11 . 53 Average 86 | . 59 42 91 202 Maximum Alert Level 2 | . 1 . 1 2 Low Security (%) 91 | 100 98 100 94 61 Level 1 7 | . 1 . 5 30 Level 2 1 | . . . . 7 Level 3 . | . . . . . Level 4 . | . . . . . Level 5 . | . . . . . High Security . | . . . . . Max Security . | . . . . . Squads Dispatched 6 | . 1 . . 5 Investigation 3 | . 1 . . 2 Extermination . | . . . . . Reinforcement 1 | . . . . 1 Assault 2 | . . . . 2 Garrison . | . . . . . Intercept . | . . . . . Searches Triggered . | . . . . . Construction Impeded . | . . . . . Haulers Reinforced . | . . . . . Active Scanning Responses . | . . . . . Cargo Convoy Interrupts . | . . . . . Stealth | -11 -10 -10 -9 -9 --------- Run | Scr Mat Min Mat Sto Distress Signals 4 | . 1 . 1 2 Communications Jammed . | . . . . . Distress Signals . | . . . . . Times Spotted 73 | . 20 8 13 32 Peak Tracking Total 10 | . 3 2 5 10 Tactical Retreats 5 | . 2 . . 3 Traps | -11 -10 -10 -9 -9 ------- Run | Scr Mat Min Mat Sto Traps Triggered 3 | . 1 . . 2 Indirectly . | . . . . . Trap Hack Attempts . | . . . . . Triggered . | . . . . . Disarmed . | . . . . . Reprogrammed . | . . . . . Reused . | . . . . . Traps Extracted . | . . . . . Installed . | . . . . . Triggered . | . . . . . Machines | -11 -10 -10 -9 -9 ---------- Run | Scr Mat Min Mat Sto Machines Disabled 3 | . . . 2 1 Max in Single Turn 1 | . . . 1 1 Machines Sabotaged . | . . . . . Garrisons Compromised . | . . . . . Overloaded Fab Kills . | . . . . . Hacking | -11 -10 -10 -9 -9 --------- Run | Scr Mat Min Mat Sto Machines Accessed 10 | . 8 . 2 . Terminals 10 | . 8 . 2 . Fabricators . | . . . . . Repair Stations . | . . . . . Recycling Units . | . . . . . Scanalyzers . | . . . . . Garrison Access . | . . . . . Total Hacks 20 | . 17 . 3 . Successful 12 | . 10 . 2 . Failed 7 | . 6 . 1 . Catastrophic 1 | . 1 . . . Database Lockouts 1 | . 1 . . . Manual 22 | . 18 . 3 1 Terminals 20 | . 17 . 3 . Fabricators . | . . . . . Repair Stations . | . . . . . Recycling Units . | . . . . . Scanalyzers . | . . . . . Garrison Access . | . . . . . Terminal Hacks 3 | . 3 . . . Robot Analysis 2 | . 2 . . . Unreport Threat 1 | . 1 . . . Fabricator Hacks . | . . . . . Repair Station Hacks . | . . . . . Recycling Unit Hacks . | . . . . . Scanalyzer . | . . . . . Garrison Access Hacks . | . . . . . Unauthorized Hacks 9 | . 7 . 2 . Terminals 9 | . 7 . 2 . Botnet 9 | . 7 . 2 . Fabricators . | . . . . . Repair Stations . | . . . . . Recycling Units . | . . . . . Scanalyzers . | . . . . . Garrison Access . | . . . . . Data Cores Recovered 2 | . 2 . . . Used 2 | . 2 . . . Hacking Detections 6 | . 4 . 1 1 Full Trace Events . | . . . . . Feedback Events . | . . . . . Feedback Blocked . | . . . . . Robot Schematics Acquired . | . . . . . Robots Built . | . . . . . Authchips . | . . . . . Time . | . . . . . Total Robot Build Rating . | . . . . . Part Schematics Acquired . | . . . . . Parts Built . | . . . . . Authchips . | . . . . . Time . | . . . . . Total Part Build Rating . | . . . . . Parts Repaired . | . . . . . Time . | . . . . . Parts Recycled . | . . . . . Recycled Matter . | . . . . . Retrieved Matter . | . . . . . Retrieved Components . | . . . . . Parts Scanalyzed . | . . . . . Part Schematics Acquired . | . . . . . Parts Damaged . | . . . . . Bothacking | -11 -10 -10 -9 -9 ------------ Run | Scr Mat Min Mat Sto Used RIF Installer . | . . . . . Robots Hacked . | . . . . . Non-combat . | . . . . . Combat . | . . . . . Robot Hacks Applied . | . . . . . Relay Couplers Released . | . . . . . Fabnet Peak Effective % . | . . . . . Robots Rewired . | . . . . . Allies Hacked . | . . . . . Hacks Repelled . | . . . . . Allies | -11 -10 -10 -9 -9 -------- Run | Scr Mat Min Mat Sto Total Allies 2 | . . . . 2 Largest Group 2 | . . . . 2 Highest-Rated Group 62 | . . . . 62 Highest-Rated Ally 31 | . . . . 31 Total Orders . | . . . . . Ally Attacks 11 | . . . . 11 Total Damage 192 | . . . . 192 Kills 2 | . . . . 2 Allies Corrupted 1 | . . . . 1 Allies Melted 1 | . . . . 1 Intel | -11 -10 -10 -9 -9 ------- Run | Scr Mat Min Mat Sto Robot Analysis Total 2 | . 2 . . . Derelict Logs Recovered 2 | . . 2 . . Drone Launches . | . . . . . Drone Recoveries . | . . . . . Exploration | -11 -10 -10 -9 -9 ------------- Run | Scr Mat Min Mat Sto Turns Passed 3105 | 96 898 930 577 604 Spaces Moved 2398 | 82 863 862 369 222 Core 11 | 7 . . . 4 Treads 177 | . . . 3 174 Legs . | . . . . . Wheels 2210 | 75 863 862 366 44 Hover . | . . . . . Flight . | . . . . . Fastest Speed 50 | 50 80 95 95 125 Average Speed 102 | 78 89 95 122 159 Slowest Speed 400 | 100 95 95 240 400 Overloaded Moves . | . . . . . Propulsion Burnouts . | . . . . . Robots Hopped . | . . . . . Cave-ins Triggered . | . . . . . Exploration Rate (%) 54 | 5 92 99 36 38 Regions Visited 4 Branch Regions 2 Pre-discovered Areas 1 | . . 1 . . Known Exits Taken . | . . . . . Unknown Exits Taken 4 | 1 1 1 1 . Scrap Searched 1 | . . 1 . . Spaces Dug . | . . . . . Terrain Destroyed 38 | . . . . 38 Melee . | . . . . . Projectile . | . . . . . AOE 38 | . . . . 38 Terrain Rammed . | . . . . . Walls Destroyed . | . . . . . Machines Disabled . | . . . . . Actions | -11 -10 -10 -9 -9 --------- Run | Scr Mat Min Mat Sto Total 2809 | 99 940 937 438 395 Wait 211 | . 41 48 24 98 Move 2394 | 81 862 861 368 222 Hop . | . . . . . Pick Up 26 | 6 5 6 4 5 Fast Attach 16 | 7 2 . 4 3 Attach 7 | . 1 1 3 2 Detach . | . . . . . Swap 10 | . 2 1 3 4 Drop 17 | . 3 2 5 7 Fire 99 | 5 24 18 27 25 Melee 29 | . . . . 29 Ram . | . . . . . Kick . | . . . . . Crush . | . . . . . Escape Stasis . | . . . . . Rewire . | . . . . . Trap . | . . . . . Miscellaneous . | . . . . . Route ------- -11/Scrapyard -10/Materials (discovered 4 exits: *Mat x3 / [*Min]) -10/Mines (discovered 2 exits: *Mat x2) -9/Materials (discovered 3 exits: [*Min x2] / *Sto) -9/Storage History --------- Turn | Location | Event 10 | -11/Scrapyard | Discovered new exit (range 16) 97 | -11/Scrapyard | Entered Materials 315 | -10/Materials | Build established: Mutant 459 | -10/Materials | Discovered new exit (range 15) 595 | -10/Materials | Discovered new exit (range 15) 647 | -10/Materials | Discovered new exit (range 15) 664 | -10/Materials | Discovered new exit (range 11) 903 | -10/Materials | Central database locked down 995 | -10/Materials | Entered Mines 1019 | -10/Mines | Met a Derelict bent on vengeance 1202 | -10/Mines | Received a Rocket Launcher from a helpful Derelict 1216 | -10/Mines | Deemed a non-threat by the Exiles lab entrance 1278 | -10/Mines | Learned location of Mines (-9) 1329 | -10/Mines | A weapon hastily lodged in a ceiling crevice suddenly fell to the ground 1374 | -10/Mines | Learned Materials trap positions 1418 | -10/Mines | Discovered new exit (range 10) 1621 | -10/Mines | Discovered new exit (range 12) 1925 | -10/Mines | Entered Materials 1925 | -9/Materials | Evolved 2 slots: Utility x1, Weapon x1 1926 | -9/Materials | Loaded intel: 14 trap records 1965 | -9/Materials | Discovered new exit (range 15) 2003 | -9/Materials | Discovered new exit (range 11) 2434 | -9/Materials | Discovered new exit (range 8) 2502 | -9/Materials | Entered Storage 2591 | -9/Storage | Build established: Scavenger-Tank 2899 | -9/Storage | Met a pair of Derelict thieves 3039 | -9/Storage | Core integrity fell below 50% 3088 | -9/Storage | Core integrity fell below 20% 3103 | -9/Storage | Lost 6 parts (1p2n1u2w) 3106 | -9/Storage | Destroyed by G-47 Trooper with Particle Gun Last Messages --------------- 03047_ Imp. Treads destroyed. 03064_ Destroyed Flight Unit. 03064_ S-10 Pest system corrupted by crushing effect. 03064_ S-10 Pest destroyed. 03066_ G-34 Mercenary knocked back. 03066_ G-34 Mercenary destroyed. 03068_ S-10 Pest suffers critical hit (Smash). 03068_ S-10 Pest destroyed. 03072_ G-34 Mercenary knocked back. 03072_ Imp. Ion Engine destroyed. 03074_ Acquired Lgt. Ion Engine. 03079_ G-34 Mercenary destroyed. 03081_ Critical hit (Burn: +37). 03091_ Destroyed Heat Sink. 03091_ Y-45 Defender system corrupted by crushing effect. 03092_ Y-45 Defender system terminally corrupted. 03092_ Heat Sink fried. 03092_ Beam Rifle fried. 03097_ S-10 Pest suffers critical hit (Smash). 03097_ S-10 Pest destroyed. Map ----- +----------------------------------------------------+ | ?????????????????????????????????????????????????? | | ?????????????????????????????????????????????????? | | ?????????????????????????????????????????????????? | | ?????????????????????????????????????????????????? | | ?????????????????????????????????????????????????? | | ?????????????????????????????????????????????????? | | ??????????????????????????????????????????????# ?? | | ??????????????????????????????????????????????? " | | ????????????????????????????????????????????????? | | ??????????????????????????????????????????######## | | ?????????????????????????????????????? # | | ???????????????????????????????????????"" + | | ??????????????????????????????????????????# | | ??????????????????????????????????????????# | | ??????????????????????????????????????????# | | ???????????????????????????????????????#### | | ???????????????????????????????? | | ??????????????????????????????????#### ##### | | ?????????????????????????????????????# ?????# ## | | ?????????????????????????????????????# ??????# ## | | ????????????????????##???????????????#+???????# ## | | ????????????????????? ???????#???????????????# #" | | ?????????????????????? ???????# ??????????????# #? | | ??????????????????????#[?????## ????? #??????# #? | | ?????????????????" ####%####?? """ #??????# #? | | ?????????????????" +[=%*=@%#??# #??????# #? | | ????????????????" #######g#??# """ #??????# #? | | ?????????????????????????#%#??# """ ######## #? | | ?????????????????????????#[##?? """ # # # # ## | | ?????????????????????????#%T#???? ?# ##%# | | ??????????????????########%########+#### =# # #[# | | ???????????? =[[ !%* * [% | | ???????????? % = [= [ | | ???????????? ***% | | ?????????????########################## %!! | | ??????????????????????????????????????############ | | ?????????????????????????????????????????????????? | | ?????????????????????????????????????????????????? | | | | | | | | | | | | | | | | | | | | | | | | | +----------------------------------------------------+ Best States ------------- Heat Dissipation 42 Energy Generation 12 Energy Capacity 265 Matter Stores 300 Matter Capacity 300 Sight Range 16 Terrain Scan Density 10 Armor Coverage 150 Evasion (%) 44 Recoil Reduction 2 Item Schematics ----------------- None Robot Schematics ------------------ None Fabricated ------------ Nothing Alien Tech Used ----------------- None Achievements -------------- None Challenges ------------ None Game ------ Seed ControlIntegrityProtomatter Manual? 0 Play Time 00:29:38 Cumulative 68.7 hours Start 2022.08.24 @ 11:43:10 End 2022.08.24 @ 12:08:50 Sessions 1 Manual Loads 0 Difficulty Rogue Special Mode None Game No. 107 Rogue 79 Adventurer 28 Explorer 0 Win Type - Total 0 Types 0/0/0/0/0/0/0/0/0 Lore% 23 Gallery% 31 Achievement% 31 Wizard Run 0 Options --------- ASCII 0 Keyboard 0 Movement Mouse Keybinds 0 Fullscreen 1 Font 24/Terminus Map View 84x54 Tactical HUD 1 Map Filters NONE Filters NONE Steam 1 RUN: 32daa313-2894-4536-b850-593355a8ebcd